bitfinex/quotes_SOLUSD_20251117
["timestamp","ask_amount","ask_price","bid_price","bid_amount"]
[1763411445197,4.66,130.59,130.57,32.58872176]
[1763411446665,14.79776176,130.58,130.53,8.54096991]
[1763411446985,14.09776176,130.58,130.55,18.12096]
[1763411447201,4.66,130.59,130.54,14.46776176]
[1763411447367,4.66,130.59,130.57,18.12096]
[1763411447569,19.45776176,130.59,130.57,18.12096]
[1763411447787,14.09776176,130.58,130.57,18.12096]
[1763411447973,19.45776176,130.59,130.57,18.12096]
[1763411448175,19.45776176,130.59,130.56,18.12096]
[1763411448494,19.45776176,130.59,130.57,18.12096]
[1763411448679,14.09776176,130.58,130.57,18.12096]
[1763411448882,4.66,130.59,130.56,18.12096]
[1763411449113,4.66,130.59,130.58,18.12096]
[1763411449313,4.66,130.59,130.58,14.09776176]
[1763411449609,4.66,130.59,130.57,18.12096]
[1763411449771,4.66,130.59,130.58,18.12096]
[1763411451904,5.36,130.59,130.58,18.12096]
[1763411452072,4.66,130.59,130.58,18.12096]
[1763411453588,19.45776176,130.59,130.57,18.12096]
[1763411453898,4.66,130.59,130.58,18.12096]
[1763411454504,18.75776176,130.59,130.57,18.12096]
[1763411454874,4.66,130.59,130.58,18.12096]
[1763411455294,14.34486992,130.59,130.56,8.54096991]
[1763411455493,4.66,130.59,130.55,0.37]
[1763411455679,4.66,130.59,130.58,18.12096]
[1763411456198,4.66,130.6,130.58,36.01679983]
[1763411456506,4.66,130.6,130.59,8.98486992]
[1763411457025,4.66,130.6,130.58,17.89583983]
[1763411457596,4.66,130.6,130.58,35.64679983]
[1763411457797,4.66,130.6,130.58,8.98486992]
[1763411457997,4.66,130.6,130.58,9.35486992]
[1763411458168,4.66,130.6,130.58,8.98486992]
[1763411458370,4.66,130.6,130.58,18.12096]
[1763411459106,4.66,130.6,130.57,27.10582992]
[1763411459275,4.66,130.6,130.57,35.64679983]
[1763411460020,4.66,130.6,130.58,9.35486992]
[1763411460316,4.66,130.6,130.59,17.52583983]
[1763411460485,4.66,130.6,130.59,8.91096991]
[1763411460879,4.66,130.64,130.62,18.12096]
[1763411461106,8.98486992,130.63,130.62,17.40096]
[1763411461320,8.98486992,130.63,130.56,12.79962919]
[1763411461321,9.78882769,130.62,130.52,8.57210073]
[1763411461479,8.98486992,130.53,130.49,8.57210073]
[1763411461681,8.98486992,130.5,130.48,0.1]
[1763411461880,8.98486992,130.49,130.48,0.1]
[1763411462183,13.64486992,130.52,130.48,0.79]
[1763411462406,8.98486992,130.49,130.48,0.1]
[1763411463312,0.7,130.49,130.48,18.22096]
[1763411463523,9.68486992,130.49,130.48,18.22096]
[1763411463715,8.98486992,130.5,130.48,18.22096]
[1763411464214,9.68486992,130.49,130.48,0.1]
[1763411465182,19.47369761,130.49,130.48,0.1]
[1763411465406,9.68486992,130.49,130.48,0.1]
[1763411465784,9.68486992,130.49,130.42,0.1]
[1763411465989,8.98486992,130.45,130.44,18.12096]
[1763411466228,9.78882769,130.47,130.44,18.12096]
[1763411466431,4.66,130.48,130.46,18.12096]
[1763411466598,4.66,130.48,130.46,0.69]
[1763411467123,4.66,130.48,130.46,9.67486992]
[1763411467533,4.66,130.48,130.47,0.69]
[1763411467692,4.66,130.48,130.46,9.67486992]
[1763411468719,4.66,130.48,130.44,18.81096]
[1763411468926,4.66,130.48,130.45,0.69]
[1763411469226,4.66,130.48,130.45,9.67486992]
[1763411469588,9.68486992,130.47,130.43,18.12096]
[1763411469815,8.98486992,130.45,130.42,0.1]
[1763411470031,4.66,130.44,130.42,0.1]
[1763411470321,8.98486992,130.43,130.42,0.1]
[1763411470654,19.47369761,130.43,130.42,0.1]
[1763411472918,9.78882769,130.42,130.33,0.67]
[1763411473118,8.98486992,130.37,130.35,18.12096]
[1763411473342,4.66,130.36,130.35,18.12096]
[1763411474025,14.30486992,130.36,130.3,9.65486992]
[1763411474225,8.98486992,130.35,130.33,18.12096]
[1763411474629,8.98486992,130.34,130.33,18.12096]
[1763411474860,8.98486992,130.34,130.32,18.12096]
[1763411475165,8.98486992,130.34,130.31,0.67]
[1763411475671,8.98486992,130.35,130.33,18.12096]
[1763411476065,4.66,130.36,130.34,18.79096]
[1763411476443,4.66,130.36,130.34,18.12096]
[1763411476770,4.66,130.36,130.32,0.67]
[1763411476956,13.64486992,130.36,130.34,18.12096]
[1763411477341,13.64486992,130.36,130.32,0.67]
[1763411477541,8.98486992,130.35,130.34,18.12096]
[1763411477758,13.64486992,130.36,130.34,18.12096]
[1763411478776,4.66,130.36,130.35,18.12096]
[1763411479274,4.66,130.36,130.31,0.7]
[1763411479474,14.34486992,130.36,130.31,0.7]
[1763411479666,9.68486992,130.35,130.3,27.10582992]
[1763411479859,8.98486992,130.34,130.32,18.12096]
[1763411480256,13.64486992,130.36,130.34,18.12096]
[1763411480458,8.98486992,130.35,130.3,18.12096]
[1763411480669,4.66,130.36,130.34,18.12096]
[1763411481051,13.64486992,130.36,130.34,18.12096]
[1763411481545,4.66,130.36,130.35,18.12096]
[1763411481750,4.66,130.36,130.35,0.7]
[1763411481976,4.66,130.36,130.35,9.68486992]
[1763411482181,4.66,130.39,130.38,18.12096]
[1763411482383,0.7,130.44,130.38,18.12096]
[1763411482384,9.68486992,130.44,130.38,27.10582992]
[1763411482557,4.66,130.43,130.42,18.12096]
[1763411482753,9.78882769,130.42,130.36,18.12096]
[1763411483075,9.78882769,130.42,130.24,8.57210073]
[1763411483076,8.98486992,130.37,130.3,8.98486992]
[1763411483276,8.98486992,130.35,130.3,8.98486992]
[1763411483470,8.98486992,130.34,130.32,18.12096]
[1763411483657,8.98486992,130.34,130.3,0.7]
[1763411483864,8.98486992,130.32,130.27,9.68486992]
[1763411484061,4.66,130.31,130.28,8.98486992]
[1763411484286,4.66,130.31,130.28,0.7]
[1763411484780,4.66,130.31,130.3,18.12096]
[1763411486763,4.66,130.31,130.3,0.7]
[1763411487267,4.66,130.31,130.28,9.68486992]
[1763411487470,4.66,130.31,130.28,8.98486992]
[1763411487665,4.66,130.31,130.29,9.68486992]
[1763411488068,4.66,130.31,130.3,0.7]
[1763411489058,4.66,130.31,130.24,0.7]
[1763411489059,5.36,130.31,130.24,0.7]
[1763411489280,8.98486992,130.28,130.24,0.7]
[1763411489589,13.64486992,130.27,130.25,18.12096]
[1763411489776,4.66,130.27,130.26,18.12096]
[1763411489978,4.66,130.27,130.24,0.7]
[1763411489979,13.64486992,130.27,130.24,0.7]
[1763411490179,13.64486992,130.27,130.22,8.98486992]
[1763411490380,5.36,130.27,130.24,18.12096]
[1763411490583,4.66,130.27,130.24,18.12096]
[1763411490890,8.98486992,130.25,130.19,0.7]
[1763411491092,8.98486992,130.23,130.21,18.12096]
[1763411491392,4.66,130.22,130.21,18.12096]
[1763411491595,13.64486992,130.22,130.18,0.1]
[1763411491795,8.98486992,130.21,130.18,0.1]
[1763411491995,8.98486992,130.21,130.19,18.12096]
[1763411492673,8.98486992,130.21,130.18,0.1]
[1763411492864,8.98486992,130.19,130.18,18.22096]
[1763411493069,8.98486992,130.19,130.18,0.1]
[1763411493401,9.68486992,130.19,130.18,0.1]
[1763411494101,9.78882769,130.21,130.18,0.1]
[1763411494284,4.66,130.2,130.18,0.1]
[1763411494764,4.66,130.2,130.19,18.12096]
[1763411495370,14.34486992,130.2,130.18,0.1]
[1763411495572,14.34486992,130.2,130.18,18.22096]
[1763411495771,19.47369761,130.19,130.18,0.1]
[1763411496977,10.48882769,130.19,130.18,0.1]
[1763411497315,10.48882769,130.19,130.16,0.1]
[1763411497316,19.47369761,130.19,130.16,0.1]
[1763411497618,4.66,130.2,130.11,18.12096]
[1763411497619,9.78882769,130.16,130.11,18.12096]
[1763411497779,9.78882769,130.14,130.12,18.12096]
[1763411497979,4.66,130.13,130.09,8.98486992]
[1763411498179,13.64486992,130.13,130.08,8.98486992]
[1763411498398,4.66,130.13,130.12,18.12096]
[1763411498981,13.64486992,130.13,130.12,18.12096]
[1763411499178,13.64486992,130.13,130.07,0.7]
[1763411499382,13.64486992,130.13,130.08,8.98486992]
[1763411499577,13.64486992,130.13,130.11,18.12096]
[1763411499778,9.68486992,130.12,130.06,0.7]
[1763411499979,8.98486992,130.08,130.03,8.98486992]
[1763411500189,9.78882769,130.06,130.01,0.2]
[1763411500391,8.98486992,130.05,130.01,0.2]
[1763411500683,4.66,130.05,130.03,8.98486992]
[1763411501060,4.66,130.05,130.01,0.2]
[1763411501061,13.64486992,130.05,130.01,0.9]
[1763411501181,10.48882769,130.04,130.01,0.2]
[1763411501378,18.77369761,130.02,130.01,0.2]
[1763411501688,23.43369761,130.02,130.01,0.2]
[1763411501893,24.09369761,130.02,130.01,0.2]
[1763411502396,15.10882769,130.02,130.01,0.2]
[1763411502595,24.09369761,130.02,130.01,0.2]
[1763411502903,15.10882769,130.02,130.01,0.2]
[1763411503102,24.09369761,130.02,130.01,0.2]
[1763411503504,9.78882769,130.01,129.97,0.2]
[1763411503812,18.77369761,129.98,129.97,0.2]
[1763411504115,23.45369761,129.98,129.97,0.2]
[1763411504285,24.11369761,129.98,129.97,0.2]
[1763411504680,0.66,130.0,129.97,0.2]
[1763411504901,18.77369761,129.98,129.97,0.2]
[1763411505399,9.64486992,129.98,129.97,0.2]
[1763411505833,8.98486992,129.98,129.97,0.2]
[1763411506031,10.44882769,129.98,129.97,0.2]
[1763411506334,19.43369761,129.98,129.97,0.2]
[1763411508447,10.44882769,129.98,129.97,0.2]
[1763411508606,19.43369761,129.98,129.97,0.2]
[1763411508922,19.43369761,129.98,129.96,0.1]
[1763411509112,4.68,129.99,129.96,0.1]
[1763411509113,19.43369761,129.97,129.96,0.1]
[1763411509435,10.44882769,129.97,129.96,0.1]
[1763411509632,19.43369761,129.97,129.96,0.1]
[1763411509818,19.43369761,129.97,129.95,0.2]
[1763411510018,9.78882769,129.95,129.94,0.2]
[1763411510221,23.45369761,129.95,129.94,0.2]
[1763411510423,15.12882769,129.95,129.94,0.2]
[1763411510738,24.11369761,129.95,129.94,0.2]
[1763411511644,10.44882769,129.95,129.94,0.2]
[1763411511823,14.46882769,129.95,129.94,0.2]
[1763411512744,23.45369761,129.95,129.94,0.2]
[1763411513438,14.46882769,129.95,129.94,0.2]
[1763411513754,4.68,129.95,129.94,0.89]
[1763411513923,4.68,129.95,129.94,19.01096]
[1763411514254,4.68,129.95,129.94,0.89]
[1763411514551,4.68,129.95,129.94,0.2]
[1763411514713,4.68,129.95,129.94,18.32096]
[1763411515343,4.68,129.95,129.94,19.01096]
[1763411515711,4.68,129.95,129.94,18.32096]
[1763411516145,14.46882769,129.95,129.94,0.2]
[1763411516350,29.34693152,129.95,129.94,0.2]
[1763411516549,14.46882769,129.95,129.94,0.2]
[1763411517331,29.34693152,129.95,129.94,0.2]
[1763411517858,14.46882769,129.95,129.94,0.2]
[1763411518225,28.68693152,129.95,129.94,0.2]
[1763411518428,15.12882769,129.95,129.94,0.2]
[1763411518737,2.0,130.0,129.94,19.01096]
[1763411518738,0.66,130.0,129.94,19.01096]
[1763411518939,9.78882769,129.97,129.94,33.22906383]
[1763411519141,4.68,129.96,129.94,19.01096]
[1763411519319,4.68,129.96,129.95,0.69]
[1763411519519,9.78882769,129.99,129.95,14.90810383]
[1763411519717,9.78882769,129.99,129.94,0.2]
[1763411519718,4.68,129.96,129.94,0.2]
[1763411520146,24.66693152,129.95,129.94,0.2]
[1763411520349,4.68,129.96,129.94,0.2]
[1763411520662,24.66693152,129.95,129.94,0.2]
[1763411521025,9.78882769,129.95,129.94,0.2]
[1763411521226,4.68,129.96,129.94,0.2]
[1763411521656,4.68,129.96,129.95,18.12096]
[1763411521865,4.68,129.96,129.95,18.81096]
[1763411522161,3.24,129.96,129.95,14.90810383]
[1763411522334,18.52,130.03,129.95,14.90810383]
[1763411522335,0.66,130.04,129.95,14.90810383]
[1763411522535,4.68,130.01,130.0,14.21810383]
[1763411522763,4.68,130.01,129.94,0.2]
[1763411523056,14.21810383,129.99,129.94,0.2]
[1763411523261,0.66,130.0,129.95,18.12096]
[1763411523262,14.21810383,129.97,129.95,18.12096]
[1763411523434,4.68,129.96,129.95,18.12096]
[1763411524461,0.66,130.06,129.95,14.21810383]
[1763411524755,4.68,130.05,130.0,14.21810383]
[1763411524929,4.68,130.05,130.01,14.21810383]
[1763411525134,5.34,130.05,130.01,14.21810383]
[1763411525355,5.34,130.05,130.02,18.12096]
[1763411525652,5.34,130.05,129.98,32.33906383]
[1763411525653,0.66,130.04,129.98,32.33906383]
[1763411525853,14.21810383,130.02,129.98,18.12096]
[1763411526036,18.89810383,130.01,129.98,18.12096]
[1763411526446,5.34,130.01,129.98,18.12096]
[1763411527052,4.68,130.01,129.98,32.33906383]
[1763411527357,4.68,130.01,130.0,32.33906383]
[1763411527554,4.68,130.01,130.0,18.12096]
[1763411527932,5.34,130.01,129.94,0.2]
[1763411528163,4.68,130.01,129.99,18.12096]
[1763411528535,14.87810383,130.0,129.95,14.21810383]
[1763411528739,18.89810383,129.99,129.94,14.41810383]
[1763411528969,19.55810383,129.99,129.95,18.12096]
[1763411529137,19.55810383,129.99,129.94,14.41810383]
[1763411529138,4.68,130.01,129.97,14.21810383]
[1763411529471,4.68,130.01,130.0,32.33906383]
[1763411529850,4.68,130.01,130.0,14.21810383]
[1763411530055,4.68,130.01,129.99,14.21810383]
[1763411530441,4.68,130.01,129.95,18.12096]
[1763411530739,0.66,130.0,129.96,14.21810383]
[1763411530941,4.68,130.01,129.98,14.21810383]
[1763411531169,0.66,130.0,129.94,0.2]
[1763411531484,14.87810383,130.0,129.95,14.21810383]
[1763411531955,14.87810383,130.0,129.94,0.2]
[1763411531956,0.66,130.0,129.96,32.33906383]
[1763411532156,4.68,130.01,130.0,18.12096]
[1763411532345,0.71,130.06,130.0,32.33906383]
[1763411532539,0.71,130.06,130.0,18.12096]
[1763411532540,4.68,130.05,130.0,18.12096]
[1763411532856,4.68,130.05,130.02,14.21810383]
[1763411533039,5.39,130.05,130.02,14.21810383]
[1763411533240,4.68,130.05,130.02,14.21810383]
[1763411533438,4.68,130.05,130.01,32.33906383]
[1763411533439,5.39,130.05,130.01,32.33906383]
[1763411533639,5.39,130.05,130.01,18.12096]
[1763411533840,5.39,130.05,130.02,14.21810383]
[1763411534042,5.39,130.05,129.94,0.2]
[1763411534043,9.78882769,130.03,129.94,0.2]
[1763411534463,14.21810383,130.01,129.97,18.12096]
[1763411534668,4.68,130.0,129.97,18.12096]
[1763411534884,5.39,130.0,129.98,18.12096]
[1763411535271,0.71,129.99,129.98,18.12096]
[1763411535686,4.68,130.0,129.97,32.33906383]
[1763411535888,4.68,130.0,129.97,18.12096]
[1763411536264,4.68,130.0,129.98,14.21810383]
[1763411536463,4.68,130.0,129.99,14.21810383]
[1763411536665,14.21810383,130.06,130.02,18.12096]
[1763411536980,14.21810383,130.09,130.06,18.12096]
[1763411537296,0.71,130.1,130.06,18.12096]
[1763411537602,0.71,130.1,130.04,14.21810383]
[1763411537603,4.68,130.08,130.04,14.21810383]
[1763411537800,4.68,130.08,130.05,18.12096]
[1763411537964,4.68,130.08,130.04,14.21810383]
[1763411538295,4.68,130.08,130.05,14.21810383]
[1763411539010,5.35,130.08,130.07,18.12096]
[1763411539204,5.35,130.08,130.06,18.12096]
[1763411539369,5.35,130.08,130.02,14.21810383]
[1763411539370,14.88810383,130.07,130.02,14.21810383]
[1763411539560,0.67,130.07,130.01,14.21810383]
[1763411539765,0.67,130.07,130.02,14.21810383]
[1763411539766,14.88810383,130.07,130.02,14.21810383]
[1763411540009,14.88810383,130.07,130.0,14.21810383]
[1763411540010,14.21810383,130.05,130.0,14.21810383]
[1763411540166,4.68,130.04,129.99,14.21810383]
[1763411540506,4.68,130.04,130.0,18.12096]
[1763411540507,18.89810383,130.04,130.0,18.12096]
[1763411540664,0.67,130.03,130.0,18.12096]
[1763411540862,14.21810383,130.01,129.96,14.21810383]
[1763411541108,14.21810383,130.0,129.94,0.2]
[1763411541283,4.68,129.99,129.96,32.33906383]
[1763411541480,4.68,129.99,129.96,18.12096]
[1763411541695,0.67,129.98,129.94,0.2]
[1763411541867,0.67,129.98,129.97,18.12096]
[1763411542502,0.67,129.98,129.94,14.41810383]
[1763411542707,14.88810383,129.98,129.94,0.2]
[1763411542875,14.88810383,129.98,129.94,18.32096]
[1763411543192,4.68,129.99,129.95,14.21810383]
[1763411543511,4.68,129.99,129.94,18.32096]
[1763411543512,4.68,129.99,129.98,18.12096]
[1763411543995,4.68,129.99,129.98,32.33906383]
[1763411544492,4.68,129.99,129.98,18.12096]
[1763411545266,4.68,129.99,129.94,0.2]
[1763411545267,5.35,129.99,129.95,14.21810383]
[1763411545476,4.68,129.99,129.98,18.12096]
[1763411545681,4.68,129.99,129.98,14.21810383]
[1763411546203,4.68,129.99,129.97,18.12096]
[1763411546503,4.68,129.99,129.97,32.33906383]
[1763411546679,4.68,129.99,129.98,32.33906383]
[1763411547499,0.67,130.04,129.98,32.33906383]
[1763411547704,0.67,130.04,130.01,18.12096]
[1763411547705,14.88810383,130.04,130.01,18.12096]
[1763411548067,20.12096,130.11,130.0,32.33906383]
[1763411548268,6.28632476,130.14,130.0,18.12096]
[1763411548269,14.21810383,130.08,130.0,18.12096]
[1763411548490,14.21810383,130.08,130.02,14.21810383]
[1763411548491,0.67,130.07,130.02,14.21810383]
[1763411548692,0.67,130.07,130.03,32.33906383]
[1763411549405,14.88810383,130.07,130.03,18.12096]
[1763411549563,14.21810383,130.06,130.03,18.12096]
[1763411549769,14.88810383,130.06,130.03,18.12096]
[1763411549965,14.88810383,130.05,129.99,14.21810383]
[1763411550182,14.88810383,130.05,130.0,32.33906383]
[1763411550396,0.67,130.04,129.97,18.12096]
[1763411550590,14.88810383,130.04,130.01,18.12096]
[1763411550770,0.67,130.04,130.01,18.12096]
[1763411550971,0.67,130.03,130.01,18.12096]
[1763411551397,10.45882769,130.07,130.01,32.33906383]
[1763411551673,10.45882769,130.07,129.96,14.21810383]
[1763411551674,0.67,130.06,130.02,14.21810383]
[1763411551891,14.88810383,130.06,130.01,14.21810383]
[1763411552302,0.67,130.05,130.01,14.21810383]
[1763411552601,14.88810383,130.05,129.99,32.33906383]
[1763411552803,14.21810383,130.04,129.99,32.33906383]
[1763411553104,0.67,130.05,130.01,32.33906383]
[1763411554105,0.67,130.05,130.0,14.21810383]
[1763411554308,0.67,130.05,130.02,32.33906383]
[1763411554613,0.67,130.05,130.02,18.12096]
[1763411555885,14.88810383,130.05,130.02,18.12096]
[1763411556089,14.21810383,130.04,130.02,18.12096]
[1763411556302,14.88810383,130.04,130.02,18.12096]
[1763411556511,0.67,130.03,130.02,18.12096]
[1763411556688,0.67,130.03,130.01,18.12096]
[1763411558328,0.67,130.05,130.01,18.12096]
[1763411558620,0.67,130.03,130.01,18.12096]
[1763411559027,0.67,130.03,129.98,14.21810383]
[1763411559317,14.21810383,130.02,129.98,8.57210073]
[1763411559617,14.21810383,130.02,130.0,18.12096]
[1763411559823,0.67,130.02,130.0,18.12096]
[1763411560118,14.88810383,130.05,130.0,18.12096]
[1763411560294,0.67,130.04,130.0,18.12096]
[1763411560613,0.67,130.04,129.99,26.69306073]
[1763411560816,0.67,130.1,130.06,18.12096]
[1763411560991,0.67,130.1,130.06,32.33906383]
[1763411561328,0.67,130.13,130.08,14.21810383]
[1763411561622,14.88810383,130.1,130.07,18.12096]
[1763411561799,14.21810383,130.09,130.05,18.12096]
[1763411561986,14.91810383,130.09,130.05,18.12096]
[1763411562309,0.7,130.08,130.05,18.12096]
[1763411562920,0.7,130.1,130.05,32.33906383]
[1763411563220,0.7,130.1,130.06,18.12096]
[1763411563221,0.7,130.08,130.06,18.12096]
[1763411564220,9.78882769,130.06,130.0,14.21810383]
[1763411564427,14.21810383,130.04,129.98,8.57210073]
[1763411564721,14.21810383,130.03,129.98,14.21810383]
[1763411564937,14.21810383,130.03,129.99,18.12096]
[1763411565107,0.7,130.02,129.99,18.12096]
[1763411565723,0.7,130.02,130.0,18.12096]
[1763411566428,14.21810383,130.01,129.96,8.57210073]
[1763411566632,0.7,130.02,129.94,12.99962919]
[1763411566633,0.7,130.02,129.98,14.21810383]
[1763411566796,0.7,130.02,129.98,32.33906383]
[1763411566997,14.91810383,130.02,129.98,18.12096]
[1763411567503,0.7,130.01,129.99,18.12096]
[1763411567715,14.91810383,130.01,129.99,18.12096]
[1763411568022,0.7,130.01,129.99,18.12096]
[1763411568224,0.7,130.0,129.99,18.12096]
[1763411568528,14.91810383,130.0,129.95,8.57210073]
[1763411568821,14.91810383,130.0,129.97,18.12096]
[1763411569123,0.7,129.99,129.97,18.12096]
[1763411569935,14.91810383,129.99,129.94,0.2]
[1763411570137,14.21810383,129.98,129.94,18.32096]
[1763411570309,14.91810383,129.98,129.94,18.32096]
[1763411570503,14.91810383,129.97,129.94,0.2]
[1763411570707,9.78882769,129.95,129.94,0.2]
[1763411570920,24.70693152,129.95,129.91,1.93593088]
[1763411571096,14.21810383,129.93,129.91,1.93593088]
[1763411571299,0.7,129.94,129.91,1.93593088]
[1763411571620,14.91810383,129.93,129.91,1.93593088]
[1763411572007,0.7,129.92,129.91,1.93593088]
[1763411572529,0.7,129.94,129.91,1.93593088]
[1763411572698,24.00693152,129.95,129.91,1.93593088]
[1763411572904,14.21810383,130.05,129.94,18.12096]
[1763411572905,14.21810383,129.97,129.94,18.12096]
[1763411573109,14.21810383,129.98,129.94,18.12096]
[1763411573597,0.7,129.97,129.92,14.21810383]
[1763411573798,14.91810383,129.97,129.93,18.12096]
[1763411574001,24.00693152,129.96,129.91,1.93593088]
[1763411574345,14.21810383,129.94,129.91,20.05689088]
[1763411574506,14.21810383,129.93,129.91,1.93593088]
[1763411574701,14.21810383,129.92,129.91,1.93593088]
[1763411574959,24.00693152,129.92,129.91,0.49593088]
[1763411575235,9.78882769,129.91,129.84,18.22096]
[1763411575525,10.48882769,129.91,129.84,0.1]
[1763411575728,10.48882769,129.91,129.84,0.82]
[1763411575940,14.21810383,129.88,129.84,18.94096]
[1763411576098,0.7,129.9,129.85,18.12096]
[1763411576099,14.21810383,129.87,129.85,18.12096]
[1763411576543,9.78882769,129.89,129.85,18.84096]
[1763411576756,14.21810383,129.88,129.84,0.1]
[1763411576931,0.7,129.89,129.84,0.82]
[1763411577120,9.08702699,129.88,129.84,0.82]
[1763411577323,0.7,129.94,129.86,9.08702699]
[1763411577556,9.08702699,129.94,129.89,9.08702699]
[1763411577754,9.08702699,129.94,129.87,18.12096]
[1763411578055,9.08702699,129.94,129.89,9.80702699]
[1763411578254,9.78882769,129.97,129.87,18.12096]
[1763411578255,9.08702699,129.91,129.87,18.12096]
[1763411578555,9.08702699,129.9,129.87,18.12096]
[1763411578763,9.08702699,129.9,129.85,18.84096]
[1763411578960,9.08702699,129.89,129.85,18.84096]
[1763411579127,9.08702699,129.89,129.84,9.90702699]
[1763411579455,10.48882769,129.88,129.84,9.18702699]
[1763411579656,9.78882769,129.88,129.85,9.08702699]
[1763411579854,10.48882769,129.88,129.85,9.08702699]
[1763411580153,0.7,129.93,129.87,9.08702699]
[1763411580336,9.78882769,129.92,129.89,9.08702699]
[1763411580656,0.7,129.93,129.89,9.08702699]
[1763411580828,6.10971505,129.95,129.9,9.08702699]
[1763411581029,9.78882769,129.94,129.91,9.08702699]
[1763411581328,10.48882769,129.95,129.88,0.72]
[1763411581532,10.48882769,129.95,129.91,9.08702699]
[1763411581733,10.48882769,129.95,129.88,0.72]
[1763411582044,9.78882769,129.93,129.89,9.08702699]
[1763411582239,9.78882769,129.93,129.9,9.08702699]
[1763411582657,9.78882769,129.93,129.88,9.08702699]
[1763411582658,9.78882769,129.91,129.88,9.08702699]
[1763411582859,9.78882769,129.91,129.84,0.1]
[1763411583156,9.78882769,129.91,129.87,9.08702699]
[1763411583344,0.7,129.9,129.86,9.08702699]
[1763411583653,0.7,129.9,129.87,9.08702699]
[1763411583861,9.78882769,129.89,129.84,0.82]
[1763411584063,9.78882769,129.89,129.85,9.08702699]
[1763411584360,9.78882769,129.89,129.84,0.82]
[1763411584361,9.78882769,129.87,129.84,0.1]
[1763411584856,0.7,129.87,129.84,0.1]
[1763411585229,9.78882769,129.84,129.83,0.1]
[1763411585426,11.78882769,129.84,129.83,0.1]
[1763411585652,0.66,129.86,129.83,0.1]
[1763411585863,10.44882769,129.86,129.83,0.1]
[1763411586071,0.66,129.86,129.83,0.1]
[1763411586360,10.44882769,129.85,129.83,0.1]
[1763411586527,19.53585468,129.84,129.83,0.1]
[1763411587150,10.44882769,129.84,129.83,0.1]
[1763411587374,21.53585468,129.84,129.83,0.1]
[1763411587665,19.53585468,129.84,129.83,0.1]
[1763411587831,21.53585468,129.84,129.83,0.1]
[1763411588465,10.44882769,129.84,129.83,0.1]
[1763411588637,9.78882769,129.84,129.83,0.1]
[1763411589243,10.44882769,129.84,129.83,0.1]
[1763411589440,9.78882769,129.84,129.83,0.1]
[1763411589637,0.66,129.87,129.83,0.1]
[1763411589841,9.78882769,129.87,129.83,9.18702699]
[1763411590050,9.78882769,129.85,129.83,0.1]
[1763411590561,0.66,129.84,129.83,0.1]
[1763411591369,10.44882769,129.84,129.83,0.1]
[1763411591575,18.87585468,129.84,129.83,0.1]
[1763411592075,102.7,129.88,129.83,0.1]
[1763411592269,9.78882769,129.87,129.84,9.08702699]
[1763411592470,102.7,129.88,129.86,9.08702699]
[1763411592771,9.08702699,129.92,129.87,9.08702699]
[1763411592937,8.24580699,129.95,129.88,9.08702699]
[1763411592938,9.08702699,129.93,129.88,9.08702699]
[1763411593262,9.78882769,129.9,129.83,0.75]
[1763411593475,18.87585468,129.9,129.85,9.08702699]
[1763411593676,18.87585468,129.9,129.83,0.1]
[1763411593677,9.78882769,129.86,129.83,0.1]
[1763411593841,9.78882769,129.9,129.84,9.08702699]
[1763411594176,19.53585468,129.9,129.84,9.08702699]
[1763411594361,9.78882769,129.88,129.84,9.08702699]
[1763411594569,0.66,129.9,129.85,9.08702699]
[1763411594866,0.66,129.93,129.86,9.08702699]